[Event "*** SCC Grand Prix: Titled Tuesday Blitz"]
[Site "Chess.com"]
[Date "2020.07.21"]
[Round "3"]
[White "Gandrade2"]
[Black "awesomevishesh"]
[Result "0-1"]
[WhiteElo "2083"]
[BlackElo "2328"]
[TimeControl "180+1"]
[EndTime "10:28:03 PDT"]
[Termination "awesomevishesh won by checkmate"]

1. d4 {[%clk 0:03:00.9]} 1... Nf6 {[%clk 0:02:59.7]} 2. c4 {[%clk 0:03:00.6]}
2... g6 {[%clk 0:03:00]} 3. Nc3 {[%clk 0:03:00.5]} 3... Bg7 {[%clk 0:03:00.2]}
4. e4 {[%clk 0:03:00.6]} 4... d6 {[%clk 0:03:00]} 5. h3 {[%clk 0:03:00.8]} 5...
O-O {[%clk 0:02:59.9]} 6. Nf3 {[%clk 0:03:01.1]} 6... e5 {[%clk 0:02:58.4]} 7.
d5 {[%clk 0:03:01.4]} 7... a5 {[%clk 0:02:58]} 8. Be3 {[%clk 0:03:01.3]} 8...
Na6 {[%clk 0:02:58.2]} 9. g4 {[%clk 0:02:59.4]} 9... Nd7 {[%clk 0:02:57.7]} 10.
Be2 {[%clk 0:02:57.5]} 10... Ndc5 {[%clk 0:02:57.5]} 11. Qc2 {[%clk 0:02:36.4]}
11... c6 {[%clk 0:02:51.7]} 12. Nd2 {[%clk 0:02:33.9]} 12... Bd7 {[%clk
0:02:45.8]} 13. O-O {[%clk 0:02:32.4]} 13... f5 {[%clk 0:02:39.6]} 14. f3 {[%clk
0:02:28]} 14... Bf6 {[%clk 0:02:25.4]} 15. a4 {[%clk 0:02:24.3]} 15... Bg5
{[%clk 0:02:22.6]} 16. Bf2 {[%clk 0:02:15.6]} 16... Bh4 {[%clk 0:02:22.3]} 17.
Nb3 {[%clk 0:01:29.2]} 17... Bxf2+ {[%clk 0:02:15.5]} 18. Rxf2 {[%clk
0:01:30.1]} 18... Qh4 {[%clk 0:01:50.1]} 19. Bf1 {[%clk 0:01:23.5]} 19... Kh8
{[%clk 0:01:24.8]} 20. Nxc5 {[%clk 0:01:21.8]} 20... Nxc5 {[%clk 0:01:23.8]} 21.
Rd1 {[%clk 0:01:18.1]} 21... h5 {[%clk 0:00:53]} 22. Qc1 {[%clk 0:01:01.9]}
22... Kh7 {[%clk 0:00:49.5]} 23. Qc2 {[%clk 0:00:51.1]} 23... fxg4 {[%clk
0:00:41.8]} 24. hxg4 {[%clk 0:00:49.5]} 24... Qg3+ {[%clk 0:00:36.7]} 25. Rg2
{[%clk 0:00:39.2]} 25... Qxf3 {[%clk 0:00:35.8]} 26. gxh5 {[%clk 0:00:37.8]}
26... Qe3+ {[%clk 0:00:25.3]} 27. Kh1 {[%clk 0:00:27.7]} 27... gxh5 {[%clk
0:00:25.3]} 28. Rh2 {[%clk 0:00:13.1]} 28... Bg4 {[%clk 0:00:10.7]} 29. Rc1
{[%clk 0:00:06.5]} 29... Bf3+ {[%clk 0:00:08.6]} 30. Bg2 {[%clk 0:00:06.9]}
30... Rg8 {[%clk 0:00:07.8]} 31. Bxf3 {[%clk 0:00:07]} 31... Qxf3+ {[%clk
0:00:07.9]} 32. Rg2 {[%clk 0:00:07]} 32... Rg3 {[%clk 0:00:07.4]} 33. Rg1 {[%clk
0:00:05.3]} 33... Rag8 {[%clk 0:00:07]} 34. Nd1 {[%clk 0:00:02.1]} 34... Rh3#
{[%clk 0:00:07.3]} 0-1

[Event "*** SCC Grand Prix: Titled Tuesday Blitz"]
[Site "Chess.com"]
[Date "2020.07.21"]
[Round "3"]
[White "mikheeva86"]
[Black "anpospan"]
[Result "0-1"]
[WhiteElo "1906"]
[BlackElo "2275"]
[TimeControl "180+1"]
[EndTime "10:28:07 PDT"]
[Termination "anpospan won on time"]

1. e4 {[%clk 0:03:00.9]} 1... Nc6 {[%clk 0:02:59.2]} 2. d4 {[%clk 0:02:57.7]}
2... e5 {[%clk 0:02:59]} 3. dxe5 {[%clk 0:02:53.2]} 3... Nxe5 {[%clk 0:02:58.8]}
4. Bf4 {[%clk 0:02:43.7]} 4... Ng6 {[%clk 0:02:58.3]} 5. Bg3 {[%clk 0:02:41.5]}
5... Bb4+ {[%clk 0:02:52.1]} 6. c3 {[%clk 0:02:39.1]} 6... Bc5 {[%clk 0:02:52]}
7. Nf3 {[%clk 0:02:35.6]} 7... Qe7 {[%clk 0:02:48.7]} 8. Nbd2 {[%clk 0:02:34.3]}
8... Nf6 {[%clk 0:02:46.4]} 9. Bd3 {[%clk 0:02:32.1]} 9... d5 {[%clk 0:02:44.5]}
10. Qe2 {[%clk 0:02:30.2]} 10... dxe4 {[%clk 0:02:36.5]} 11. Nxe4 {[%clk
0:02:25.9]} 11... Nxe4 {[%clk 0:02:31.9]} 12. Bxe4 {[%clk 0:02:21.1]} 12... c6
{[%clk 0:02:27.4]} 13. O-O {[%clk 0:02:17]} 13... O-O {[%clk 0:02:25.8]} 14.
Rfe1 {[%clk 0:02:13]} 14... Be6 {[%clk 0:02:22.4]} 15. Rad1 {[%clk 0:02:01.7]}
15... Rad8 {[%clk 0:02:21.2]} 16. b4 {[%clk 0:01:51.2]} 16... Bb6 {[%clk
0:02:19.6]} 17. Bxg6 {[%clk 0:01:45.8]} 17... hxg6 {[%clk 0:02:16.7]} 18. Rxd8
{[%clk 0:01:43]} 18... Qxd8 {[%clk 0:02:07.9]} 19. Bh4 {[%clk 0:01:29]} 19...
Qd5 {[%clk 0:02:06.5]} 20. a4 {[%clk 0:01:21.6]} 20... a5 {[%clk 0:02:02.1]} 21.
Ng5 {[%clk 0:01:13.2]} 21... Bf5 {[%clk 0:01:38.4]} 22. c4 {[%clk 0:00:48.3]}
22... Qd3 {[%clk 0:01:33.5]} 23. c5 {[%clk 0:00:44.5]} 23... Qxe2 {[%clk
0:01:28.8]} 24. Rxe2 {[%clk 0:00:43.4]} 24... Bd8 {[%clk 0:01:26.1]} 25. bxa5
{[%clk 0:00:42.7]} 25... Bxa5 {[%clk 0:01:18.6]} 26. Rb2 {[%clk 0:00:43]} 26...
Rd8 {[%clk 0:01:10.5]} 27. f3 {[%clk 0:00:34.8]} 27... Rd1+ {[%clk 0:01:04.3]}
28. Kf2 {[%clk 0:00:34.1]} 28... f6 {[%clk 0:00:53.9]} 29. Ne4 {[%clk
0:00:16.9]} 29... Bxe4 {[%clk 0:00:53.6]} 30. fxe4 {[%clk 0:00:16.3]} 30... Ra1
{[%clk 0:00:53.3]} 31. Ke3 {[%clk 0:00:13.3]} 31... Rxa4 {[%clk 0:00:48.5]} 32.
Rxb7 {[%clk 0:00:13.6]} 32... f5 {[%clk 0:00:44.9]} 33. Re7 {[%clk 0:00:13.2]}
33... Kh7 {[%clk 0:00:39.9]} 34. Re6 {[%clk 0:00:12.8]} 34... Ra3+ {[%clk
0:00:37.6]} 35. Kf4 {[%clk 0:00:10.7]} 35... Ra4 {[%clk 0:00:35.3]} 36. Bg3
{[%clk 0:00:06.5]} 36... Bc7+ {[%clk 0:00:33.2]} 37. Kf3 {[%clk 0:00:05.7]}
37... fxe4+ {[%clk 0:00:30.9]} 38. Rxe4 {[%clk 0:00:04.5]} 38... Ra3+ {[%clk
0:00:30.6]} 39. Kf2 {[%clk 0:00:03.1]} 39... Bxg3+ {[%clk 0:00:29.5]} 40. hxg3
{[%clk 0:00:02.6]} 40... Rc3 {[%clk 0:00:29.6]} 41. Re5 {[%clk 0:00:01.7]} 41...
Kg8 {[%clk 0:00:27.1]} 42. Kg1 {[%clk 0:00:01.3]} 42... Kf7 {[%clk 0:00:27]} 43.
Kh2 {[%clk 0:00:01.2]} 43... Kf6 {[%clk 0:00:27.2]} 0-1

[Event "*** SCC Grand Prix: Titled Tuesday Blitz"]
[Site "Chess.com"]
[Date "2020.07.21"]
[Round "3"]
[White "GMHess"]
[Black "Lion-Al-Messi"]
[Result "1-0"]
[WhiteElo "2774"]
[BlackElo "2438"]
[TimeControl "180+1"]
[EndTime "10:28:08 PDT"]
[Termination "GMHess won by resignation"]

1. b3 {[%clk 0:03:00.9]} 1... e5 {[%clk 0:02:59.3]} 2. Bb2 {[%clk 0:03:01.8]}
2... Nc6 {[%clk 0:02:59.7]} 3. e3 {[%clk 0:03:01.3]} 3... Nf6 {[%clk 0:02:59.9]}
4. Ne2 {[%clk 0:02:58.5]} 4... d5 {[%clk 0:02:59.2]} 5. d3 {[%clk 0:02:59]} 5...
Bd6 {[%clk 0:02:59.4]} 6. Nd2 {[%clk 0:02:59.7]} 6... O-O {[%clk 0:02:58.4]} 7.
h3 {[%clk 0:03:00.3]} 7... Ne7 {[%clk 0:02:58.2]} 8. a3 {[%clk 0:03:00]} 8...
Ng6 {[%clk 0:02:58.3]} 9. g3 {[%clk 0:03:00.4]} 9... c5 {[%clk 0:02:57.6]} 10.
Bg2 {[%clk 0:03:00.7]} 10... Be6 {[%clk 0:02:55.5]} 11. Nc3 {[%clk 0:03:00.9]}
11... d4 {[%clk 0:02:54.7]} 12. Nce4 {[%clk 0:03:00.5]} 12... dxe3 {[%clk
0:02:54.3]} 13. fxe3 {[%clk 0:02:58.8]} 13... Nd5 {[%clk 0:02:53.9]} 14. Qe2
{[%clk 0:02:53.1]} 14... f5 {[%clk 0:02:47.5]} 15. Nxd6 {[%clk 0:02:51.2]} 15...
Qxd6 {[%clk 0:02:48.4]} 16. O-O-O {[%clk 0:02:38.2]} 16... Nf6 {[%clk
0:02:45.1]} 17. Bxb7 {[%clk 0:02:21.8]} 17... Rab8 {[%clk 0:02:44.1]} 18. Bg2
{[%clk 0:02:21.3]} 18... a5 {[%clk 0:02:43.9]} 19. a4 {[%clk 0:02:20.9]} 19...
Bd5 {[%clk 0:02:38]} 20. e4 {[%clk 0:02:18.9]} 20... fxe4 {[%clk 0:02:33.9]} 21.
Nxe4 {[%clk 0:02:12.7]} 21... Qc6 {[%clk 0:02:28]} 22. Nxf6+ {[%clk 0:02:09.9]}
22... Rxf6 {[%clk 0:02:27.6]} 23. Bxd5+ {[%clk 0:02:10.5]} 23... Qxd5 {[%clk
0:02:28.4]} 24. Rhf1 {[%clk 0:02:08.4]} 24... Rfb6 {[%clk 0:02:26.2]} 25. Qf3
{[%clk 0:02:02.5]} 25... Qe6 {[%clk 0:02:20.4]} 26. Qf5 {[%clk 0:01:57.6]} 26...
Qd5 {[%clk 0:02:05.6]} 27. Bc3 {[%clk 0:01:20.8]} 27... Rf6 {[%clk 0:01:54.6]}
28. Qe4 {[%clk 0:01:18.2]} 28... Qd8 {[%clk 0:01:36.2]} 29. h4 {[%clk
0:01:03.7]} 29... Ne7 {[%clk 0:01:22.8]} 30. Qxe5 {[%clk 0:00:51]} 30... Nc6
{[%clk 0:00:56]} 31. Qxc5 {[%clk 0:00:39.7]} 31... Rxf1 {[%clk 0:00:49.9]} 32.
Rxf1 {[%clk 0:00:40.6]} 32... Nb4 {[%clk 0:00:49.4]} 33. Qc4+ {[%clk 0:00:24.7]}
33... Kh8 {[%clk 0:00:38.7]} 34. Bxb4 {[%clk 0:00:24.1]} 34... axb4 {[%clk
0:00:37.3]} 35. Rf7 {[%clk 0:00:20.7]} 35... Qe8 {[%clk 0:00:28.8]} 36. Kd2
{[%clk 0:00:05.9]} 36... Rc8 {[%clk 0:00:26.9]} 37. Re7 {[%clk 0:00:06.5]} 37...
Qd8 {[%clk 0:00:02.2]} 38. Qf7 {[%clk 0:00:06.8]} 38... Qg8 {[%clk 0:00:02]} 39.
Qxg8+ {[%clk 0:00:06.7]} 39... Kxg8 {[%clk 0:00:02.9]} 40. a5 {[%clk 0:00:07.1]}
1-0

[Event "*** SCC Grand Prix: Titled Tuesday Blitz"]
[Site "Chess.com"]
[Date "2020.07.21"]
[Round "3"]
[White "harlem4brew"]
[Black "SHIVACalypso"]
[Result "0-1"]
[WhiteElo "2116"]
[BlackElo "2345"]
[TimeControl "180+1"]
[EndTime "10:28:08 PDT"]
[Termination "SHIVACalypso won by checkmate"]

1. e4 {[%clk 0:03:00.9]} 1... e6 {[%clk 0:02:59.8]} 2. d4 {[%clk 0:03:00.6]}
2... d5 {[%clk 0:02:59.2]} 3. Nc3 {[%clk 0:02:58.9]} 3... Nf6 {[%clk 0:02:58.6]}
4. Bg5 {[%clk 0:02:58.5]} 4... dxe4 {[%clk 0:02:57.2]} 5. Nxe4 {[%clk
0:02:57.3]} 5... Be7 {[%clk 0:02:57.2]} 6. Nxf6+ {[%clk 0:02:56.5]} 6... Bxf6
{[%clk 0:02:56]} 7. Bxf6 {[%clk 0:02:56.4]} 7... Qxf6 {[%clk 0:02:56.3]} 8. Nf3
{[%clk 0:02:57.3]} 8... O-O {[%clk 0:02:55.5]} 9. Bd3 {[%clk 0:02:56.3]} 9... c5
{[%clk 0:02:51.3]} 10. c3 {[%clk 0:02:55.5]} 10... cxd4 {[%clk 0:02:48.8]} 11.
Nxd4 {[%clk 0:02:54.4]} 11... e5 {[%clk 0:02:48.2]} 12. Ne2 {[%clk 0:02:50.4]}
12... Nc6 {[%clk 0:02:44.6]} 13. Qc2 {[%clk 0:02:48.3]} 13... h6 {[%clk
0:02:37.6]} 14. Ng3 {[%clk 0:02:47.7]} 14... Be6 {[%clk 0:02:32.5]} 15. O-O
{[%clk 0:02:44.1]} 15... Rac8 {[%clk 0:02:31.3]} 16. Ne4 {[%clk 0:02:41.5]}
16... Qe7 {[%clk 0:02:30]} 17. Rae1 {[%clk 0:02:35.6]} 17... Nb4 {[%clk
0:02:23.8]} 18. Qe2 {[%clk 0:02:26.3]} 18... Nxd3 {[%clk 0:02:22.1]} 19. Qxd3
{[%clk 0:02:26.9]} 19... Bc4 {[%clk 0:02:22.3]} 20. Qd6 {[%clk 0:02:22.4]} 20...
Qc7 {[%clk 0:01:57]} 21. Re3 {[%clk 0:01:19.7]} 21... Bxf1 {[%clk 0:01:53.6]}
22. Qd1 {[%clk 0:01:01.1]} 22... Bc4 {[%clk 0:01:34.8]} 23. Qh5 {[%clk
0:00:40.6]} 23... f5 {[%clk 0:01:27.8]} 24. Ng5 {[%clk 0:00:33.2]} 24... hxg5
{[%clk 0:01:17.5]} 25. Rh3 {[%clk 0:00:29.7]} 25... Qd7 {[%clk 0:01:10.5]} 26.
Qh7+ {[%clk 0:00:19.1]} 26... Kf7 {[%clk 0:01:09.9]} 27. Qh5+ {[%clk 0:00:19.1]}
27... Kf6 {[%clk 0:01:09.8]} 28. Re3 {[%clk 0:00:08.8]} 28... Rh8 {[%clk
0:01:03.7]} 29. Qf3 {[%clk 0:00:08.7]} 29... Rcd8 {[%clk 0:00:53.7]} 30. h3
{[%clk 0:00:07.3]} 30... Qd1+ {[%clk 0:00:53.6]} 31. Qxd1 {[%clk 0:00:05.2]}
31... Rxd1+ {[%clk 0:00:54.5]} 32. Kh2 {[%clk 0:00:05.2]} 32... Rd2 {[%clk
0:00:54.2]} 33. b3 {[%clk 0:00:05.3]} 33... Bd5 {[%clk 0:00:53.3]} 34. c4 {[%clk
0:00:04.1]} 34... Bc6 {[%clk 0:00:51.1]} 35. f3 {[%clk 0:00:03.6]} 35... g4
{[%clk 0:00:48]} 36. Re1 {[%clk 0:00:03.8]} 36... gxf3 {[%clk 0:00:45.7]} 37.
Rg1 {[%clk 0:00:03.1]} 37... Rxg2+ {[%clk 0:00:41.6]} 38. Rxg2 {[%clk
0:00:02.8]} 38... fxg2 {[%clk 0:00:42.5]} 39. b4 {[%clk 0:00:02.6]} 39... Rxh3+
{[%clk 0:00:38.9]} 40. Kxh3 {[%clk 0:00:02.4]} 40... g1=Q {[%clk 0:00:38.5]} 41.
b5 {[%clk 0:00:02.8]} 41... Qg2+ {[%clk 0:00:39]} 42. Kh4 {[%clk 0:00:01.8]}
42... Qg4# {[%clk 0:00:39.9]} 0-1

[Event "*** SCC Grand Prix: Titled Tuesday Blitz"]
[Site "Chess.com"]
[Date "2020.07.21"]
[Round "3"]
[White "Panterov"]
[Black "ketster"]
[Result "1/2-1/2"]
[WhiteElo "2155"]
[BlackElo "2371"]
[TimeControl "180+1"]
[EndTime "10:28:09 PDT"]
[Termination "Game drawn by repetition"]

1. e4 {[%clk 0:03:00.9]} 1... e5 {[%clk 0:02:59.6]} 2. Nf3 {[%clk 0:03:00.5]}
2... Nc6 {[%clk 0:02:56.6]} 3. d4 {[%clk 0:03:00.7]} 3... exd4 {[%clk
0:02:56.5]} 4. Nxd4 {[%clk 0:03:01.6]} 4... Bb4+ {[%clk 0:02:56.4]} 5. c3 {[%clk
0:03:00.8]} 5... Bc5 {[%clk 0:02:56.7]} 6. Be3 {[%clk 0:03:00.9]} 6... Bb6
{[%clk 0:02:56.6]} 7. Nd2 {[%clk 0:03:00.2]} 7... Nf6 {[%clk 0:02:55.2]} 8. Be2
{[%clk 0:02:52.4]} 8... O-O {[%clk 0:02:55.2]} 9. Bf3 {[%clk 0:02:51]} 9... d5
{[%clk 0:02:52.9]} 10. O-O {[%clk 0:02:49.4]} 10... Nxd4 {[%clk 0:02:47.6]} 11.
Bxd4 {[%clk 0:02:46.6]} 11... Bxd4 {[%clk 0:02:46.6]} 12. cxd4 {[%clk
0:02:46.4]} 12... dxe4 {[%clk 0:02:40.7]} 13. Nxe4 {[%clk 0:02:45.9]} 13... Nd5
{[%clk 0:02:40.9]} 14. Qb3 {[%clk 0:02:43.3]} 14... c6 {[%clk 0:02:35.7]} 15.
Rfe1 {[%clk 0:02:41.2]} 15... b6 {[%clk 0:02:06.6]} 16. Rac1 {[%clk 0:02:37]}
16... Bb7 {[%clk 0:02:06.7]} 17. Nc3 {[%clk 0:02:34.6]} 17... Nf4 {[%clk
0:02:01]} 18. Rcd1 {[%clk 0:02:31.7]} 18... Qg5 {[%clk 0:01:54.1]} 19. g3 {[%clk
0:02:26.2]} 19... Rad8 {[%clk 0:01:40.8]} 20. h4 {[%clk 0:02:16.7]} 20... Qg6
{[%clk 0:01:25.1]} 21. Be4 {[%clk 0:02:10.3]} 21... Qg4 {[%clk 0:01:24.8]} 22.
Kh2 {[%clk 0:02:05.1]} 22... Ne6 {[%clk 0:01:12.4]} 23. Bg2 {[%clk 0:02:00.4]}
23... Nxd4 {[%clk 0:01:09.2]} 24. Qa4 {[%clk 0:01:55.1]} 24... Nf3+ {[%clk
0:01:07.3]} 25. Bxf3 {[%clk 0:01:37.6]} 25... Qxf3 {[%clk 0:01:08.2]} 26. Qf4
{[%clk 0:01:30]} 26... Qxf4 {[%clk 0:00:59.1]} 27. gxf4 {[%clk 0:01:30.9]} 27...
Bc8 {[%clk 0:00:49.7]} 28. Re7 {[%clk 0:01:27.5]} 28... Rxd1 {[%clk 0:00:46.7]}
29. Nxd1 {[%clk 0:01:26.3]} 29... Rd8 {[%clk 0:00:44.6]} 30. Ne3 {[%clk
0:01:25.9]} 30... Bd7 {[%clk 0:00:44.4]} 31. Re5 {[%clk 0:01:15.8]} 31... f6
{[%clk 0:00:37.9]} 32. Re4 {[%clk 0:01:12.6]} 32... Kf7 {[%clk 0:00:35.8]} 33.
Ra4 {[%clk 0:01:08.3]} 33... a5 {[%clk 0:00:33.5]} 34. Rd4 {[%clk 0:01:07]}
34... Ke7 {[%clk 0:00:32.9]} 35. Nc4 {[%clk 0:01:07]} 35... Rb8 {[%clk
0:00:24.8]} 36. Re4+ {[%clk 0:01:05.7]} 36... Kf8 {[%clk 0:00:19.2]} 37. Re3
{[%clk 0:01:01.5]} 37... a4 {[%clk 0:00:17.5]} 38. b3 {[%clk 0:01:00.3]} 38...
b5 {[%clk 0:00:17.5]} 39. Nd6 {[%clk 0:00:56.2]} 39... axb3 {[%clk 0:00:17.8]}
40. axb3 {[%clk 0:00:55.7]} 40... Rd8 {[%clk 0:00:16.4]} 41. Nb7 {[%clk
0:00:54.1]} 41... Rb8 {[%clk 0:00:16]} 42. Nc5 {[%clk 0:00:53.9]} 42... Bc8
{[%clk 0:00:10.2]} 43. h5 {[%clk 0:00:50.8]} 43... h6 {[%clk 0:00:09.6]} 44. Rd3
{[%clk 0:00:48.6]} 44... Ke7 {[%clk 0:00:09.3]} 45. b4 {[%clk 0:00:49]} 45...
Ra8 {[%clk 0:00:09]} 46. Re3+ {[%clk 0:00:48.8]} 46... Kd6 {[%clk 0:00:09.3]}
47. Rd3+ {[%clk 0:00:48.8]} 47... Kc7 {[%clk 0:00:09]} 48. Re3 {[%clk
0:00:48.9]} 48... Kd8 {[%clk 0:00:06.7]} 49. Rd3+ {[%clk 0:00:48.2]} 49... Ke7
{[%clk 0:00:07.1]} 50. Re3+ {[%clk 0:00:47.6]} 50... Kd8 {[%clk 0:00:07.5]} 51.
Rd3+ {[%clk 0:00:46.3]} 51... Ke7 {[%clk 0:00:07.6]} 1/2-1/2

[Event "*** SCC Grand Prix: Titled Tuesday Blitz"]
[Site "Chess.com"]
[Date "2020.07.21"]
[Round "3"]
[White "talaicito"]
[Black "lucliasco"]
[Result "0-1"]
[WhiteElo "2059"]
[BlackElo "2735"]
[TimeControl "180+1"]
[EndTime "10:28:10 PDT"]
[Termination "lucliasco won by resignation"]

1. d4 {[%clk 0:03:00.9]} 1... d6 {[%clk 0:02:59.9]} 2. e4 {[%clk 0:02:59.8]}
2... Nf6 {[%clk 0:03:00.8]} 3. Nc3 {[%clk 0:02:59.2]} 3... Nbd7 {[%clk
0:03:01.2]} 4. Bc4 {[%clk 0:02:53]} 4... e5 {[%clk 0:03:02.1]} 5. Nf3 {[%clk
0:02:50.2]} 5... Be7 {[%clk 0:03:02.2]} 6. g4 {[%clk 0:02:49.5]} 6... h6 {[%clk
0:03:00.2]} 7. g5 {[%clk 0:02:41.6]} 7... hxg5 {[%clk 0:02:52.9]} 8. Nxg5 {[%clk
0:02:42.5]} 8... O-O {[%clk 0:02:53]} 9. Be3 {[%clk 0:02:32.9]} 9... exd4 {[%clk
0:02:42.7]} 10. Qxd4 {[%clk 0:02:17.3]} 10... Ne5 {[%clk 0:02:36.6]} 11. O-O-O
{[%clk 0:02:05.2]} 11... Nxc4 {[%clk 0:02:33.3]} 12. Qxc4 {[%clk 0:02:04.6]}
12... Ng4 {[%clk 0:02:30.9]} 13. h4 {[%clk 0:01:49.2]} 13... Nxe3 {[%clk
0:02:26.8]} 14. fxe3 {[%clk 0:01:48.7]} 14... Bxg5 {[%clk 0:02:20.7]} 15. hxg5
{[%clk 0:01:48.4]} 15... Qxg5 {[%clk 0:02:14.9]} 16. Qxc7 {[%clk 0:01:41.9]}
16... Qxe3+ {[%clk 0:02:13.1]} 17. Kb1 {[%clk 0:01:41.8]} 17... Bg4 {[%clk
0:02:10.4]} 18. Rd3 {[%clk 0:01:32.5]} 18... Qc5 {[%clk 0:02:04]} 19. Qxb7
{[%clk 0:01:21.3]} 19... Be6 {[%clk 0:01:55.2]} 20. Nd5 {[%clk 0:01:11.2]} 20...
Bxd5 {[%clk 0:01:51.8]} 21. Qxd5 {[%clk 0:01:11.7]} 21... Qxd5 {[%clk 0:01:51]}
22. Rxd5 {[%clk 0:01:10.3]} 22... Rfe8 {[%clk 0:01:48.8]} 23. Rdh5 {[%clk
0:00:53.3]} 23... f6 {[%clk 0:01:46.7]} 24. Kc1 {[%clk 0:00:51]} 24... Kf7
{[%clk 0:01:44.9]} 25. R5h4 {[%clk 0:00:50.5]} 25... Rad8 {[%clk 0:01:34.2]} 26.
c4 {[%clk 0:00:46.9]} 26... g5 {[%clk 0:01:17]} 27. Rh7+ {[%clk 0:00:46.3]}
27... Ke6 {[%clk 0:01:17.9]} 28. Rxa7 {[%clk 0:00:45.9]} 28... Ke5 {[%clk
0:01:16.7]} 29. Re1 {[%clk 0:00:41.5]} 29... g4 {[%clk 0:01:13.4]} 30. Ra5+
{[%clk 0:00:35.5]} 30... Ke6 {[%clk 0:01:06.8]} 31. Rg1 {[%clk 0:00:31.1]} 31...
Rg8 {[%clk 0:01:06.8]} 32. Rg3 {[%clk 0:00:31]} 32... Rc8 {[%clk 0:01:04.8]} 33.
b3 {[%clk 0:00:30.6]} 33... Rc5 {[%clk 0:01:04.7]} 34. Rxc5 {[%clk 0:00:25.5]}
34... dxc5 {[%clk 0:01:05.6]} 35. Kd2 {[%clk 0:00:25.9]} 35... f5 {[%clk
0:01:05.2]} 36. Ke3 {[%clk 0:00:23.1]} 36... Ke5 {[%clk 0:01:00.9]} 37. exf5
{[%clk 0:00:22.7]} 37... Kxf5 {[%clk 0:01:01.8]} 38. Rg1 {[%clk 0:00:22.4]}
38... Rh8 {[%clk 0:01:01.5]} 39. Kf2 {[%clk 0:00:21.3]} 39... Rh2+ {[%clk
0:00:59.6]} 40. Rg2 {[%clk 0:00:21.5]} 40... Rh1 {[%clk 0:00:59.7]} 41. Kg3
{[%clk 0:00:21.6]} 41... Rh3+ {[%clk 0:00:59.3]} 42. Kf2 {[%clk 0:00:21.2]}
42... Kf4 {[%clk 0:00:59.4]} 43. Ke2 {[%clk 0:00:16.6]} 43... Rc3 {[%clk
0:00:56.6]} 44. Rf2+ {[%clk 0:00:16]} 44... Ke4 {[%clk 0:00:56.4]} 45. Rg2
{[%clk 0:00:15.3]} 45... g3 {[%clk 0:00:52.9]} 46. Kf1 {[%clk 0:00:14.2]} 46...
Kf3 {[%clk 0:00:51.4]} 47. Rxg3+ {[%clk 0:00:12.2]} 47... Kxg3 {[%clk
0:00:50.7]} 48. Ke2 {[%clk 0:00:12.9]} 48... Rc2+ {[%clk 0:00:50.2]} 49. Kd3
{[%clk 0:00:13.4]} 49... Rxa2 {[%clk 0:00:51.1]} 50. Ke4 {[%clk 0:00:13.8]}
50... Rb2 {[%clk 0:00:50.5]} 51. Kd5 {[%clk 0:00:14.3]} 51... Rxb3 {[%clk
0:00:49.5]} 52. Kxc5 {[%clk 0:00:15]} 52... Kf4 {[%clk 0:00:49.8]} 53. Kd6
{[%clk 0:00:15.4]} 53... Kf5 {[%clk 0:00:42.7]} 54. c5 {[%clk 0:00:16.3]} 54...
Kf6 {[%clk 0:00:43.5]} 55. c6 {[%clk 0:00:15.7]} 55... Rd3+ {[%clk 0:00:44.4]}
56. Kc7 {[%clk 0:00:15.9]} 56... Ke7 {[%clk 0:00:44.5]} 57. Kb7 {[%clk
0:00:13.4]} 57... Rc3 {[%clk 0:00:44.5]} 58. c7 {[%clk 0:00:13.2]} 58... Kd7
{[%clk 0:00:44.4]} 59. c8=Q+ {[%clk 0:00:13]} 59... Rxc8 {[%clk 0:00:44.6]} 0-1

[Event "*** SCC Grand Prix: Titled Tuesday Blitz"]
[Site "Chess.com"]
[Date "2020.07.21"]
[Round "3"]
[White "Orest_Vovk"]
[Black "SzMM19"]
[Result "1-0"]
[WhiteElo "2395"]
[BlackElo "2584"]
[TimeControl "180+1"]
[EndTime "10:28:11 PDT"]
[Termination "Orest_Vovk won by checkmate"]

1. h4 {[%clk 0:03:00.9]} 1... d5 {[%clk 0:02:59.4]} 2. h5 {[%clk 0:03:00.8]}
2... c5 {[%clk 0:02:57.9]} 3. Nc3 {[%clk 0:02:58.8]} 3... d4 {[%clk 0:02:56]} 4.
Ne4 {[%clk 0:02:57.8]} 4... e6 {[%clk 0:02:49.1]} 5. e3 {[%clk 0:02:52.9]} 5...
Nc6 {[%clk 0:02:48.8]} 6. Nf3 {[%clk 0:02:49.1]} 6... Nf6 {[%clk 0:02:43.7]} 7.
Nxf6+ {[%clk 0:02:45.8]} 7... Qxf6 {[%clk 0:02:44.6]} 8. e4 {[%clk 0:02:43.5]}
8... h6 {[%clk 0:02:40.5]} 9. Bb5 {[%clk 0:02:39.3]} 9... e5 {[%clk 0:02:36.9]}
10. d3 {[%clk 0:02:32.5]} 10... Bg4 {[%clk 0:02:33.2]} 11. Bxc6+ {[%clk
0:02:21.5]} 11... bxc6 {[%clk 0:02:29.4]} 12. c4 {[%clk 0:02:16.9]} 12... Bd6
{[%clk 0:02:22.8]} 13. Qa4 {[%clk 0:01:51.9]} 13... Bxf3 {[%clk 0:01:44.6]} 14.
Qxc6+ {[%clk 0:01:50.4]} 14... Ke7 {[%clk 0:01:44.3]} 15. Qb7+ {[%clk
0:01:47.3]} 15... Ke6 {[%clk 0:01:44.4]} 16. Qd5+ {[%clk 0:01:41.8]} 16... Kd7
{[%clk 0:01:44.5]} 17. gxf3 {[%clk 0:01:16.8]} 17... Qxf3 {[%clk 0:01:43.1]} 18.
Rg1 {[%clk 0:01:13.7]} 18... Rab8 {[%clk 0:01:23.2]} 19. Rxg7 {[%clk 0:01:05.2]}
19... Rhf8 {[%clk 0:01:19.8]} 20. b3 {[%clk 0:00:39.7]} 20... Qxd3 {[%clk
0:00:51.9]} 21. Rxf7+ {[%clk 0:00:38.2]} 21... Rxf7 {[%clk 0:00:52.6]} 22. Qxf7+
{[%clk 0:00:38.6]} 22... Kc6 {[%clk 0:00:53]} 23. Qd5+ {[%clk 0:00:36.1]} 23...
Kc7 {[%clk 0:00:53.1]} 24. Bd2 {[%clk 0:00:30.3]} 24... Rf8 {[%clk 0:00:26.2]}
25. Ba5+ {[%clk 0:00:27.7]} 25... Kd7 {[%clk 0:00:24.7]} 26. Rd1 {[%clk
0:00:17.1]} 26... Qf3 {[%clk 0:00:20.9]} 27. Rd2 {[%clk 0:00:14.3]} 27... Qh1+
{[%clk 0:00:20.3]} 28. Ke2 {[%clk 0:00:14.7]} 28... Qxh5+ {[%clk 0:00:20.8]} 29.
Kd3 {[%clk 0:00:14.2]} 29... Qf3+ {[%clk 0:00:18]} 30. Kc2 {[%clk 0:00:14.2]}
30... h5 {[%clk 0:00:17.5]} 31. b4 {[%clk 0:00:11.4]} 31... Qc3+ {[%clk
0:00:11]} 32. Kd1 {[%clk 0:00:08.7]} 32... d3 {[%clk 0:00:08]} 33. Rxd3 {[%clk
0:00:05.9]} 33... Qa1+ {[%clk 0:00:08]} 34. Ke2 {[%clk 0:00:06.2]} 34... Qxa2+
{[%clk 0:00:07.8]} 35. Rd2 {[%clk 0:00:06.3]} 35... Qb3 {[%clk 0:00:01.5]} 36.
Qxd6+ {[%clk 0:00:06.3]} 36... Kc8 {[%clk 0:00:01.9]} 37. Qxf8+ {[%clk
0:00:06.5]} 37... Kb7 {[%clk 0:00:02.8]} 38. Rd7+ {[%clk 0:00:06.5]} 38... Kc6
{[%clk 0:00:02.8]} 39. Qc8# {[%clk 0:00:06.3]} 1-0